[Event "Lliga Catalana DH 2023"]
[Site "Catalonia"]
[Date "2023.02.11"]
[Round "4.4"]
[White "Avila Jimenez, Xavier"]
[Black "Iermito, Sebastian"]
[Result "0-1"]
[ECO "D90"]
[WhiteElo "2142"]
[BlackElo "2528"]
[Annotator "TA"]
[PlyCount "40"]
[EventDate "2023.01.24"]
[EventType "team-tourn"]
[EventCountry "ESP"]
[SourceTitle "playchess.com"]
[Source "ChessBase"]
[SourceQuality "1"]
[TimeControl "40/5400+30:1800+30"]

{[%evp 9,39,0,0,-9,0,-32,-37,-49,-41,-63,-68,-127,-116,-184,-183,-176,-83,-102,-67,-108,-118,-175,-198,-844,-838,-878,-868,-750,-411,-29980,-29981,-29999]} 1. d4 Nf6 2. c4 g6 3. Nc3 d5 4. Nf3 Bg7 5. h4 dxc4 {[%cal Oc7c5]} 6. e4 {D90: Grünfeld: 4 Nf3 Bg7 sidelines.} O-O {[%cal Oc7c5]} 7. e5 Ng4 {[%cal Oc7c5]} 8. h5 {[#] Black is slightly better.} c5 $1 {[%cal Bc7c5,Bc5d4,Bd4c3,Bc3b2][%mdl 32]} 9. hxg6 $1 ({Much weaker is} 9. Bxc4 cxd4 10. hxg6 (10. Nxd4 Nxe5 11. Bb3 Nbc6 $17) 10... hxg6 $17) 9... hxg6 10. Bxc4 (10. d5 $15) 10... cxd4 $17 11. e6 (11. Nd5 $17) 11... Bxe6 $19 (11... dxc3 12. exf7+ Rxf7 13. Qxd8+ Bf8 14. Bxf7+ Kxf7 15. Rh7+ Bg7 16. Ng5+ Kf6 17. Qxc8 Ke5 18. Qc5+ Kf6 19. Qd5 cxb2 20. Qe6#) 12. Bxe6 {[%cal Od1c2] [#]} fxe6 $146 (12... dxc3 $19 {is more deadly.} 13. Bxg4 cxb2 14. Bxb2 Bxb2) ({Predecessor:} 12... dxc3 13. Bxf7+ Kxf7 14. Ng5+ Ke8 15. Qxg4 cxb2 16. Bxb2 Bxb2 17. Rd1 Qa5+ 18. Kf1 Qf5 19. Qe2 Qxg5 20. Qxb2 Qf6 21. Qb5+ Nc6 22. f3 Rd8 23. Rc1 Rd7 {0-1 Pogosyan,G (2330)-Popov,I (2650) Voronezh op-A 18th 2014 (1)}) 13. Qe2 $17 Qd7 14. Qe4 dxc3 15. Qxg6 (15. Qxg4 $17 Qd5 16. Qxg6) 15... Rd8 $1 $19 {[%csl Gd8][%cal Rd7d1]} 16. Bh6 $2 (16. O-O e5 17. Ng5 (17. bxc3 $2 {too greedy.} Rf8 $19)) 16... Nxh6 (16... cxb2 $2 17. Qxg7#) 17. Rxh6 cxb2 (17... Kf8 {is a self mate.} 18. Rh7) 18. Rb1 Qd3 {Strongly threatening ...Qc3+.} 19. Qxe6+ {[#]} (19. Ng5 $19 Qxg6 20. Rxg6) 19... Kf8 20. Ng5 Bc3# {Weighted Error Value: White=0.96/Black=0.76} 0-1

[Event "Lliga Catalana DH 2023"]
[Site "Catalonia"]
[Date "2023.02.11"]
[Round "4.5"]
[White "Matnadze Bujiashvili, Ann"]
[Black "Ayas Fernandez, Antonio"]
[Result "1-0"]
[ECO "A30"]
[WhiteElo "2392"]
[BlackElo "2193"]
[Annotator "TA"]
[PlyCount "87"]
[EventDate "2023.01.24"]
[EventType "team-tourn"]
[EventCountry "ESP"]
[SourceTitle "playchess.com"]
[Source "ChessBase"]
[SourceQuality "1"]
[TimeControl "40/5400+30:1800+30"]

{[%evp 16,87,13,0,19,15,30,15,27,31,18,15,18,13,37,43,37,32,79,45,90,91,109,105,110,87,82,67,200,143,180,173,191,198,285,288,365,252,243,246,254,246,235,235,250,238,249,241,254,231,233,230,320,315,460,436,565,487,1054,590,996,989,964,916,1784,1725,2678,2577,29989,29984,29993,1691,29994,1684]} 1. Nf3 Nf6 2. c4 e6 3. g3 b6 4. Bg2 Bb7 5. O-O Be7 6. b3 c5 7. Bb2 O-O 8. d3 d6 {outshines the older 8...d5.} 9. Nbd2 Nbd7 {[%cal Bb8d7,Bd7e5,Be5c6,Bc6d4][%mdl 32] A30: Symmetrical English: Double Fianchetto and Hedgehog.} 10. e4 Qc7 11. Qe2 Rfe8 {[#] The position is equal.} 12. Ne1 $146 {[%cal Bf3e1,Be1c2,Bc2e3,Be3d5][%mdl 32]} ({Predecessor:} 12. Rfe1 Ng4 13. d4 cxd4 14. Nxd4 Ngf6 15. b4 Rac8 16. Rac1 Qb8 17. a3 Qa8 18. N2b3 {1-0 Arnaudov,P (2263)-Ljangov,P (2124) Sofia Piskov Memorial 1st 2009 (8)}) 12... Ne5 13. f4 Nc6 14. Nc2 e5 15. Ne3 Nd4 16. Qf2 Nd7 (16... a5 $14) 17. Rae1 f6 18. Bh3 Nf8 19. Nd5 Qd8 20. Bg4 Bc8 21. f5 {White is much more active. The black rooks are badly placed.} (21. Bxc8 {simplifies} Rxc8 22. Bxd4 cxd4 23. f5) 21... g6 {Prevents Bh5. This move loses the game for Black.} ({Black should play} 21... Nd7 $14) 22. Bd1 Kg7 23. g4 g5 24. h4 h6 (24... Nd7 {might work better.} 25. Kg2 Bb7) 25. hxg5 $18 hxg5 26. Re3 Bb7 27. Rh3 {Strongly threatening Qh2.} Bxd5 28. exd5 {Threatens to win with Qh2.} Nd7 {Black is weak on the light squares} 29. Kg2 {And now Rfh1 would win.} ({Don't play} 29. Ne4 $6 Rh8 30. Rxh8 Qxh8 $16) 29... Rh8 {[#]} 30. Rxh8 Qxh8 31. Rh1 Qg8 32. Qe3 Kf7 {[#]} 33. b4 $1 {[%mdl 512]} a6 (33... Rd8 34. Ne4) 34. Rh5 Rf8 (34... Bf8 $142 35. Ne4 Qg7 36. bxc5 {[%mdl 64] Remove Defender} Nxc5) 35. bxc5 bxc5 36. Ba4 Ke8 (36... Nb6 $142 37. Bc6 Nxc6) 37. Bc3 Kd8 38. Ba5+ Kc8 39. Qe1 Qg7 40. Qh1 Rf7 41. Ne4 {White threatens Rh8+ and mate.} Ne2 42. Rh8+ Nf8 43. Kf3 (43. Bd7+ $142 Kxd7 44. Qb1 Kc8 45. Qb6 {[%mdl 64] Double Attack} Nf4+ 46. Kf3 Nxd5 47. cxd5 Bd8 48. Nxd6+ Kd7 49. Qxd8#) 43... Nf4 44. Be8 {A cool game by Matnadze Bujiashvili.   Weighted Error Value: White=0.32/Black=0.65} (44. Bd7+ $142 Kxd7 45. Qb1 Kc8 46. Qb6 {[%mdl 64] Double Attack} Nxd5 47. cxd5 Bd8 48. Nxd6+ Kd7 49. Qxd8#) 1-0

[Event "Lliga Catalana DH 2023"]
[Site "Catalonia"]
[Date "2023.02.11"]
[Round "4.5"]
[White "Kozlov, Gennady"]
[Black "Perpinya Rofes, Lluis Maria"]
[Result "1-0"]
[ECO "A26"]
[WhiteElo "2384"]
[BlackElo "2261"]
[Annotator "TA"]
[PlyCount "111"]
[EventDate "2023.01.24"]
[EventType "team-tourn"]
[EventCountry "ESP"]
[SourceTitle "playchess.com"]
[Source "ChessBase"]
[SourceQuality "1"]
[TimeControl "40/5400+30:1800+30"]

{[%evp 24,111,-17,-25,-14,-19,-24,-37,-24,-26,0,-5,0,7,0,-22,-20,-30,-29,-44,-4,-3,-4,-12,-11,-17,-19,-14,0,0,0,0,0,0,0,0,0,0,0,0,0,0,0,0,5,7,18,19,25,7,0,0,0,0,0,0,29,29,101,101,101,101,101,101,114,114,113,100,101,91,100,95,92,96,135,129,158,63,175,183,183,179,177,172,335,271,1255,1011,29989,29990]} 1. c4 {[%emt 0:00:04]} e5 {[%emt 0:00:36]} 2. Nc3 {[%emt 0:00:06]} Nc6 {[%emt 0:00:27]} 3. g3 {[%emt 0:00:04]} g6 {[%emt 0:00:18]} 4. Bg2 {[%emt 0:00:03]} Bg7 {[%emt 0:00:11]} 5. d3 {[%emt 0:00:02]} d6 {[%emt 0:01:01]} 6. Nf3 {[%emt 0:00:07]} Nf6 {[%emt 0:01:17]} 7. Bg5 {[%emt 0:00:06]} h6 {[%emt 0:03:13]} 8. Bxf6 {[%emt 0:00:11]} Bxf6 {[%emt 0:00:05]} 9. Rb1 {[%emt 0:00:06]} a5 {[%emt 0:00:54]} 10. a3 {[%emt 0:00:02]} Bg7 {[%emt 0:00:29]} 11. b4 {[%emt 0:00:13]} axb4 {[%emt 0:00:29]} 12. axb4 {[%emt 0:00:02]} O-O {[%emt 0:00:18]} 13. O-O {[%emt 0:00:03]} Ne7 {[%emt 0:05:39] A26: English Opening vs King's Indian with ...Nc6 and d3.} 14. Nd2 {[%emt 0:07:21] [#]} e4 $1 {[%emt 0:07:12]} 15. Qc2 {[%emt 0:04:10]} (15. Ncxe4 $2 f5 16. Nxd6 Qxd6 $19) 15... exd3 {[%emt 0:27:53] Black is slightly better.} 16. Qxd3 {[%emt 0:00:31]} Ra3 {[%emt 0:03:23]} 17. Rb3 {[%emt 0:00:29]} Rxb3 {[%emt 0:00:47]} 18. Nxb3 {[%emt 0:00:01]} Nc6 {[%emt 0:00:28] [#]} 19. Nd5 $146 {[%emt 0:02:44]} (19. b5 $5 {[%cal Rb5c6]} Ne5 20. Qc2 $15) ({Predecessor:} 19. Bxc6 bxc6 20. Rd1 Bf5 21. Qd2 Qb8 22. b5 cxb5 23. Nxb5 Re8 24. N3d4 Bd7 25. Nc3 {½-½ Georgiev,V (2565)-Benjamin,J (2595) Europe-Americas 1998 (5)}) 19... Ne5 {[%emt 0:04:48]} 20. Qc2 {[%emt 0:00:02]} c6 {[%emt 0:02:05]} 21. Ne3 {[%emt 0:00:52]} Qb6 {[%emt 0:06:25]} 22. b5 {[%emt 0:00:07]} Be6 {[%emt 0:01:21]} 23. bxc6 {[%emt 0:01:31]} bxc6 {[%emt 0:00:31]} 24. Rd1 {[%emt 0:05:23]} Rb8 {[%emt 0:08:08]} 25. Nd4 {[%emt 0:00:24]} Ng4 {[%emt 0:01:43]} 26. c5 {[%emt 0:03:19]} Nxe3 {[%emt 0:02:35]} 27. fxe3 {[%emt 0:00:01]} Qxc5 {[%emt 0:03:38]} 28. Qxc5 {[%emt 0:00:02]} dxc5 {[%emt 0:00:07]} 29. Nxe6 {[%emt 0:00:03]} fxe6 $11 {[%emt 0:00:08][%mdl 4096] Endgame KRB-KRB} 30. Rd6 {[%emt 0:00:02]} Rb6 {[%emt 0:06:38]} 31. Rxe6 {[%emt 0:00:59]} Kf7 {[%emt 0:00:26]} 32. Rd6 {[%emt 0:00:08]} Be5 {[%emt 0:01:29]} 33. Bd5+ {[%emt 0:03:11]} Kg7 {[%emt 0:01:21]} (33... cxd5 $2 34. Rxb6 c4 35. Kf2 $18) 34. Rd7+ {[%emt 0:00:10]} Kf8 {[%emt 0:03:40]} 35. Bf7 {[%emt 0:01:08]} g5 {[%emt 0:00:39]} 36. Kf2 {[%emt 0:00:42]} Rb4 {[%emt 0:01:30]} 37. Bg6 {[%emt 0:00:02]} c4 {[%emt 0:01:42]} 38. Rf7+ {[%emt 0:00:02]} Kg8 {[%emt 0:00:05]} 39. Re7 {[%emt 0:00:02]} Bg7 {[%emt 0:01:44]} 40. Rc7 {[%emt 0:00:32]} c3 {[%emt 0:02:56]} (40... Bf6 $11 {keeps the balance.}) 41. Rc8+ $16 {[%emt 0:30:27]} Bf8 {[%emt 0:30:02]} 42. Rxc6 {[%emt 0:00:02]} Rb3 {[%emt 0:00:39]} 43. Kf3 {[%emt 0:02:12]} Kg7 {[%emt 0:00:23]} 44. Bd3 {[%emt 0:00:43] Wards off Rb5} Ra3 {[%emt 0:01:55]} 45. Kg4 {[%emt 0:01:39]} Kf7 {[%emt 0:00:45]} 46. e4 {[%emt 0:02:25][%cal Be3e4,Be4e5][%mdl 32]} Bg7 {[%emt 0:00:54]} 47. Rc7+ {[%emt 0:00:01]} Kf8 {[%emt 0:00:08]} 48. Kf5 {[%emt 0:00:13] White has more active pieces.} Bd4 {[%emt 0:00:35]} 49. Rc4 {[%emt 0:00:48]} Bg1 {[%emt 0:00:20]} 50. h3 {[%emt 0:01:39]} (50. e5 $16 {Kf6 is the strong threat.} Ra7 51. Rxc3) 50... Be3 {[%emt 0:00:46] [#]} ({Black should try} 50... Ra5+ $14 51. Kg6 (51. e5 Rc5 $14) 51... g4 52. hxg4 (52. Rxc3 gxh3 53. e5 Rxe5 $15) 52... Rg5+ 53. Kf6 Rc5 54. Rxc5 Bxc5) 51. e5 $1 $18 {[%emt 0:01:33]} Ke7 {[%emt 0:00:27]} 52. Rc7+ {[%emt 0:00:22]} Kd8 {[%emt 0:00:09]} 53. Rc6 {[%emt 0:00:01]} h5 $2 {[%emt 0:00:26] [#]} (53... g4 {was called for.}) 54. Kf6 $1 {[%emt 0:00:59]} Ra7 $2 {[%emt 0:01:08]} (54... Ra5 55. Be4 (55. Rxc3 Bd4 $16) 55... Bc5 56. Kxg5 Be7+ {[%mdl 64] Discovered Attack} 57. Kf5 (57. Kxh5 Rxe5+ 58. Kg4 Rxe4+ 59. Kf3 Kd7 $11) 57... Rc5 58. Rxc5 Bxc5) 55. Bf5 {[%emt 0:00:12][%csl Gf5][%cal Rc6c8]} Rc7 {[%emt 0:00:10] Inhibits Rc8+.} 56. Rd6+ {[%emt 0:00:01] Weighted Error Value: White=0.05 (flawless) /Black=0.28 (precise)} 1-0

[Event "Lliga Catalana DH 2023"]
[Site "Catalonia"]
[Date "2023.02.11"]
[Round "4.6"]
[White "Bernado Lopez, Roger"]
[Black "Salgado Allaria, Carlos"]
[Result "1-0"]
[ECO "B40"]
[WhiteElo "2167"]
[BlackElo "2234"]
[Annotator "TA"]
[PlyCount "143"]
[EventDate "2023.01.24"]
[EventType "team-tourn"]
[EventCountry "ESP"]
[SourceTitle "playchess.com"]
[Source "ChessBase"]
[SourceQuality "1"]
[TimeControl "40/5400+30:1800+30"]

{[%evp 9,143,29,36,25,107,97,112,106,128,135,160,163,157,151,162,160,160,161,160,168,162,151,149,51,33,0,0,0,0,0,28,41,39,47,118,110,105,121,113,108,122,112,115,89,89,83,83,83,83,84,75,81,88,73,77,68,70,40,80,68,75,53,54,43,51,14,78,73,87,84,79,74,59,47,49,50,52,42,56,56,55,55,100,104,110,125,128,102,175,154,575,534,612,586,614,348,370,331,358,287,468,465,515,501,512,520,696,689,674,652,954,941,893,838,902,806,1820,2140,2005,2020,2129,2110,2359,2100,1643,1327,1660,1615,29976,29973,29981,29982,29982,29983,29979,5065]} 1. e4 {[%emt 3:12:37]} c5 {[%emt 0:00:55]} 2. Nf3 {[%emt 0:00:11][%cal Bg1f3,Bf3d4,Bd4b5,Bb5c7][%mdl 32]} e6 {[%emt 0:00:08]} 3. d4 {[%emt 0:00:08]} cxd4 {[%emt 0:00:08]} 4. Nxd4 {[%emt 0:00:05]} Qb6 {[%emt 0:01:42]} 5. Be3 {[%emt 0:00:16]} Bc5 {[%emt 0:01:32]} 6. Na3 {[%emt 0:00:09] B40: Sicilian: 2...e6, Unusual lines.} Bxa3 {[%emt 0:10:47]} (6... Qa5+ $11 7. Bd2 Qd8) 7. bxa3 $16 {[%emt 0:00:47]} Qa5+ {[%emt 0:03:33]} 8. Bd2 {[%emt 0:05:21] White is better.} Qe5 {[%emt 0:01:53]} 9. Nb5 {[%emt 0:03:37] aiming for Bd3.} a6 {[%emt 0:02:37]} 10. Bc3 $1 {[%emt 0:07:28][%mdl 64] Skewer} (10. Nc3 $6 Nc6 $11) 10... Qxe4+ {[%emt 0:00:54]} 11. Qe2 {[%emt 0:00:10]} Qxe2+ {[%emt 0:03:40]} 12. Bxe2 {[%emt 0:00:06]} Kf8 {[%emt 0:06:28] Black is weak on the dark squares} 13. Nc7 {[%emt 0:03:25]} Ra7 {[%emt 0:01:08]} 14. Bd4 {[%emt 0:00:44] White has more active pieces. This pair of bishops is nice.} b6 {[%emt 0:00:14]} 15. Bxb6 {[%emt 0:00:13]} Rb7 {[%emt 0:00:06] [#]} 16. Bc5+ $146 {[%emt 0:02:44]} (16. Bxa6 $2 Nxa6 17. Nxa6 Rxb6 $19) (16. Rb1 $1 $16) ({Predecessor:} 16. Rb1 d6 17. Bf3 d5 18. Bc5+ Ne7 19. Rxb7 Bxb7 20. Kd2 Nd7 21. Bd6 h5 22. Rb1 {1-0 Manik,M (2474)-Papp,G (2474) AUT-chT2O 0506 2005 (6.1)}) 16... Ne7 $14 {[%emt 0:00:10]} 17. Nxa6 {[%emt 0:09:35]} (17. Bxa6 $2 Rxc7 18. Bxe7+ Kxe7 $19) 17... Nxa6 {[%emt 0:02:42][%mdl 64] Remove Defender} 18. Bxa6 {[%emt 0:00:07][%cal Be2a6,Ba6c8,Bc8d7,Bd7a4,Ba4b3][%mdl 32]} Rc7 {[%emt 0:00:09][%csl LRa6,LRc5]} 19. Bxc8 {[%emt 0:03:08]} Rxc5 {[%emt 0:09:36]} 20. Bxd7 {[%emt 0:00:09]} Rxc2 {[%emt 0:00:28]} 21. Ba4 $36 {[%emt 0:00:36][%mdl 2048] Black is under pressure.} Rb2 {[%emt 0:04:32]} (21... Rc8 $14) 22. O-O-O $16 {[%emt 0:01:11][%cal Rd1d8]} Rb8 {[%emt 0:01:03] Prevents Rd8+} 23. Rd7 {[%emt 0:01:36]} g6 {[%emt 0:14:31]} 24. Rhd1 {[%emt 0:00:35]} Nd5 {[%emt 0:01:24]} 25. Bb3 {[%emt 0:03:08]} Kg7 {[%emt 0:00:30]} 26. Rd3 {[%emt 0:07:47]} (26. Bxd5 $6 Rhc8+ 27. Kd2 exd5 $11) 26... Rhc8+ {[%emt 0:04:13]} 27. Kb2 {[%emt 0:00:53]} Nb6 {[%emt 0:04:17]} 28. Ra7 {[%emt 0:04:51]} Nc4+ {[%emt 0:06:29]} 29. Ka1 {[%emt 0:00:19]} Ne5 {[%emt 0:01:30] ( -> ...Rc1+)} 30. Rd1 {[%emt 0:04:14] Prevents Rc1+.} Kf6 {[%emt 0:00:58]} 31. Ra4 {[%emt 0:08:32]} Rc3 {[%emt 0:02:54]} 32. Rf4+ {[%emt 0:02:49]} Ke7 {[%emt 0:01:54]} 33. Rfd4 {[%emt 0:03:35]} (33. Re4 $5 {[%cal Re4e5]} Kf6 34. Kb2 $14) 33... Rb7 {[%emt 0:00:53]} 34. a4 {[%emt 0:07:27]} Rc5 {[%emt 0:01:15]} 35. Kb1 {[%emt 0:02:52]} Nc6 {[%emt 0:01:13]} 36. Rh4 {[%emt 0:01:24]} Na5 {[%emt 0:01:41]} 37. Kb2 {[%emt 0:03:29]} ({Reject} 37. Rxh7 Nxb3 38. axb3 Rxb3+ 39. Ka2 Rb4 $15) (37. Rd3 $5 {[%cal Rh4h7]}) 37... h5 {[%emt 0:00:09]} (37... Nc4+ $11 38. Kb1 (38. Ka1 Na5 $11) 38... Na5) 38. Ka3 {[%emt 0:01:53]} Rc3 {[%emt 0:00:41]} 39. Rb4 {[%emt 0:00:52]} Rbc7 {[%emt 0:00:07] ...Nc4+ is the strong threat.} 40. Rbd4 {[%emt 0:01:22]} Rb7 {[%emt 0:01:23][%cal Ra5b3]} 41. Kb2 {[%emt 0:02:11]} Rc5 42. R4d3 {[%emt 0:03:15]} Nc4+ {[%emt 0:00:57]} 43. Ka1 {[%emt 0:00:14] Strongly threatening Rc3.} Na5 {[%emt 0:00:11]} 44. Kb1 {[%emt 0:00:50]} Rc4 {[%emt 0:01:54]} 45. Kb2 {[%emt 0:02:59]} Rc5 {[%emt 0:00:47]} 46. Rc3 {[%emt 0:00:25]} Re5 {[%emt 0:01:46]} 47. Rd2 {[%emt 0:00:50]} Re4 {[%emt 0:00:44]} 48. Rdc2 {[%emt 0:01:43]} Kf6 {[%emt 0:01:14]} (48... Rh4 $16) 49. Ka3 {[%emt 0:00:25]} Reb4 $2 {[%emt 0:00:42] Black cannot hold the game after this.} (49... Rd7 $16 50. Rc5 Nb7) 50. Rf3+ $18 {[%emt 0:00:39]} Kg7 {[%emt 0:00:15]} 51. Rc5 {[%emt 0:00:18]} Nxb3 {[%emt 0:00:32]} 52. axb3 {[%emt 0:00:07][%mdl 4096] Endgame KRR-KRR} Re4 {[%emt 0:00:58]} 53. Rc2 {[%emt 0:00:30]} Re1 {[%emt 0:00:42]} 54. Ra2 {[%emt 0:00:42]} Rb1 $2 {[%emt 0:01:21]} (54... Re4 {was called for.} 55. Rd3 Rb8) 55. a5 {[%emt 0:01:18][%cal Ba4a5,Ba5a6][%mdl 32]} e5 {[%emt 0:00:14]} 56. Rc3 {[%emt 0:00:25]} e4 {[%emt 0:00:19]} 57. Ka4 {[%emt 0:00:38]} f5 {[%emt 0:01:21]} 58. a6 {[%emt 0:00:39]} Ra7 {[%emt 0:01:19]} 59. Ka5 {[%emt 0:00:29]} Rd1 {[%emt 0:00:06]} 60. b4 {[%emt 0:00:16][%cal Bb3b4,Bb4b5][%mdl 32]} f4 {[%emt 0:00:15]} 61. b5 {[%emt 0:00:12]} Rd5 {[%emt 0:00:06]} 62. Rac2 {[%emt 0:00:53] And now Rc7+ would win.} Kh6 {[%emt 0:00:18]} 63. Rc7 {[%emt 0:00:46]} Ra8 {[%emt 0:00:12]} 64. Rc8 {[%emt 0:00:13]} Ra7 {[%emt 0:02:09]} 65. R2c7 {[%emt 0:00:07]} Rxc7 {[%emt 0:00:09]} 66. Rxc7 {[%emt 0:00:01] KR-KR} Rd2 {[%emt 0:00:11]} 67. Re7 {[%emt 0:02:03]} f3 {[%emt 0:01:02]} 68. gxf3 {[%emt 0:00:39]} exf3 {[%emt 0:00:02]} 69. a7 {[%emt 0:00:59] White mates.} Rxf2 {[%emt 0:00:07]} 70. Kb6 {[%emt 0:00:31]} (70. a8=R Ra2+ 71. Kb4 Rxa8 $11) 70... Ra2 {[%emt 0:00:05]} 71. Rf7 {[%emt 0:00:07]} f2 {[%emt 0:00:06] [#]} 72. Rxf2 $3 {[%emt 0:00:40][%mdl 512] Weighted Error Value: White=0.16 (very precise) /Black=0.34} 1-0

[Event "Lliga Catalana DH 2023"]
[Site "Catalonia"]
[Date "2023.02.11"]
[Round "4.6"]
[White "Pros Heras, Jordi"]
[Black "Baches Garcia, Guillermo"]
[Result "0-1"]
[ECO "E20"]
[WhiteElo "2054"]
[BlackElo "2328"]
[Annotator "TA"]
[PlyCount "52"]
[EventDate "2023.01.24"]
[EventType "team-tourn"]
[EventCountry "ESP"]
[SourceTitle "playchess.com"]
[Source "ChessBase"]
[SourceQuality "1"]
[TimeControl "40/5400+30:1800+30"]

{[%evp 9,52,18,37,34,38,-7,0,-8,6,-70,-72,-84,-47,-49,-51,-39,-27,-31,-32,-45,-35,-39,-50,-59,-45,-50,-15,-58,-43,-116,-97,-233,-217,-210,-191,-209,-180,-213,-213,-235,-230,-225,-214,-454,-427]} 1. d4 Nf6 2. c4 e6 3. Nc3 Bb4 4. f3 Nc6 {[%cal Bb8c6,Bc6a5,Ba5c4][%mdl 32]} 5. e4 {[%cal Be2e4,Be4e5][%mdl 32]} d5 6. e5 {E20: Nimzo-Indian: 4 g3 and 4 f3.} Ng8 7. a3 Bxc3+ 8. bxc3 {The position is equal.} dxc4 9. f4 (9. Nh3 $11) 9... Na5 $15 10. Nf3 {[#]} Ne7 $146 ({Predecessor:} 10... Bd7 11. a4 Bc6 12. Be2 Ne7 13. O-O Qd5 14. Rf2 Nf5 15. Ne1 Nb3 16. Ra2 Nxc1 17. Qxc1 {½-½ Kantorik,M (2272)-Galyas,M (2419) Salgotarjan Balazs Memorial op 2003 (2)}) 11. Bxc4 {[%mdl 64] Decoy} Nxc4 12. Qa4+ Bd7 {[%cal Bc8d7,Bd7c6,Bc6d5,Bd5c6][%mdl 32]} 13. Qxc4 Bc6 14. O-O Qd7 {...Bb5 is the strong threat.} 15. Qe2 O-O-O 16. Bd2 Bd5 17. a4 f5 18. Be1 h6 {[%cal Og7g5,Bh7h6,Bh6g5][%mdl 32]} 19. Nd2 {[#]} ({White should play} 19. Bd2 $15) 19... g5 $1 $17 20. Qb5 {[#] This move loses the game for White.} (20. c4 $17 Bc6 {[%mdl 64] Discovered Attack} 21. Nb3) 20... Bc6 $1 $19 21. Qc5 {[#]} Qd5 $1 22. Qxd5 (22. Nf3 Qxc5) 22... Nxd5 {[%cal Be7d5,Bd5f4,Bf4e2][%mdl 32]} 23. fxg5 hxg5 24. Nc4 Nf4 25. Ne3 {White is weak on the light squares} Rh7 26. Bg3 $2 (26. Rf2 {keeps fighting.}) 26... Ne2+ {Weighted Error Value: White=0.37/Black=0.08 (flawless)} 0-1

[Event "Lliga Catalana DH 2023"]
[Site "Catalonia"]
[Date "2023.02.11"]
[Round "4.7"]
[White "Garcia Jimenez, Francisco Javier"]
[Black "Saumoy Poch, Salvador"]
[Result "1-0"]
[ECO "C01"]
[WhiteElo "2230"]
[BlackElo "2002"]
[Annotator "TA"]
[PlyCount "53"]
[EventDate "2023.01.24"]
[EventType "team-tourn"]
[EventCountry "ESP"]
[SourceTitle "playchess.com"]
[Source "ChessBase"]
[SourceQuality "1"]
[TimeControl "40/5400+30:1800+30"]

{[%evp 11,53,10,21,0,43,42,39,36,36,33,48,17,13,14,14,19,49,41,40,34,34,36,35,35,42,39,47,54,57,50,70,79,55,58,181,182,179,159,589,583,861,856,29997,29998]} 1. e4 e6 {[%cal Be7e6,Be6d5][%mdl 32]} 2. d4 d5 3. exd5 exd5 4. c4 c6 5. Nc3 Nf6 6. Bd3 Be7 7. Nge2 {C01: French: Exchange Variation.} Nbd7 {[%cal Bb8d7,Bd7f6,Bf6g4][%mdl 32]} 8. cxd5 Nxd5 9. Nxd5 {White is slightly better.} cxd5 10. O-O O-O {[#]} 11. Ng3 $146 ({Predecessor:} 11. Re1 Nf6 12. Ng3 Re8 13. Bd2 Qb6 14. Bg5 Bd7 15. Bxf6 Bxf6 16. Qh5 g6 17. Qxd5 {0-1 Weissmueller,K (1669)-Niebler,A (1793) Mittelfranken-chTB2b 0910 2009 (4.7)}) 11... Nf6 (11... Nb8 {with more complications.} 12. Nh5 Nc6 13. Re1 Bb4) 12. Bf4 Bd6 13. Be5 Bxe5 14. dxe5 Ng4 15. h3 Nxe5 {[#]} 16. Bxh7+ $1 {[%mdl 64] Decoy} Kxh7 17. Qh5+ Kg8 {...f6 is the strong threat.} 18. Qxe5 Re8 19. Qd4 Qg5 20. Rae1 Rxe1 21. Rxe1 {[%cal Bf1e1,Be1e3,Be3g3][%mdl 32] Black must now prevent Re8+.} Be6 22. Kh2 $40 {[%mdl 128] Black needs to defend precisely.} Qd8 {[#]} ({Better is} 22... Qf6 $14 23. Qxf6 gxf6) 23. Nh5 $1 $18 {[%csl Gh5][%cal Rd4g7]} Qf8 24. Re3 Qd6+ (24... Bf5 $16 {is tougher.} 25. Qxd5 Bg6) 25. f4 {[%csl Gh5][%cal Rd4g7]} f6 26. Rg3 {[%csl LRf6,LRg7]} Qb6 27. Qxf6 {Weighted Error Value: White=0.04 (flawless) /Black=0.91} 1-0